Cogmind - Beta 14 @@@ ROGUE MODE // 2025.05.02 @ 13:00:17 Player: McSaucyNugget Result: Destroyed by Alpha 7 with Multirail Performance ------------- Evolutions (8) 4000 Regions Visited (27) 5400 Robots Destroyed (294) 1470 Value Destroyed (17413) 17413 Prototype IDs (8) 160 Alien Tech Used (7) 1400 Bonus (22679) 22679 TOTAL SCORE: 52522 Bonus ------- High Alert Combat Kills 1859 Follower Combat Kills 11022 Entered Garrisons 1400 Used RIF Installer 3000 Entered DSFs 500 Used Core Reset Matrix 3000 Scanned by Researcher 1000 Met Sigix 2000 Friendly Fire -1102 Cogmind --------- Core Integrity 0/1450 Matter 285/300 Energy 98/100 System Corruption 25% Temperature Cool (0) Movement Core (50) Location -2/Section 7 Parts ------- > --- POWER (2) -------- (None) > --- PROPULSION (6) --- (None) > --- UTILITY (12) ----- Advanced Target Analyzer > --- WEAPON (3) ------- (None) > --- INVENTORY (5) ---- Energy Filter Improved Actuator Array Sigix Containment Pod Peak State ------------ > --- POWER ------------ Quantum Reactor Reinforced Quantum Reactor > --- PROPULSION ------- Armored Heavy Treads Biometal Heavy Treads Biometal Heavy Treads > --- UTILITY ---------- Huge Storage Unit Advanced Phase Shifter Layered Heavy Armor Plating Layered Heavy Armor Plating Phase Redirector Relay Coupler [NC] Relay Coupler [Swarmer] Relay Coupler [Brawler] Relay Coupler [Duelist] Relay Coupler [Sentry] > --- WEAPON ----------- Improved Remote Datajack Sigix Broadsword > --- INVENTORY -------- Light Quantum Reactor Biometal Heavy Treads Biometal Heavy Treads Advanced Heavy Siege Treads Advanced Heat Sink Matter Compressor Layered Medium Armor Plating Improved Force Field Relay Coupler [Swarmer] Relay Coupler [Swarmer] Relay Coupler [Brawler] Subatomic Replicator Hardcell Cannon Hardcell Cannon Heavy Gauss Cannon Advanced Remote Datajack Advanced Remote Datajack Advanced Remote Datajack Sigix Containment Pod [Rating: 183] Favorites ----------- Power Reinforced Quantum Reactor Engine Ion Engine Power Core Light Nuclear Core Reactor Reinforced Quantum Reactor Propulsion Wheel Treads Armored Heavy Treads Wheel Wheel Hover Unit Improved Antigrav System Flight Unit Impulse Thruster Array Utility Huge Storage Unit Device Advanced Heat Sink Storage Huge Storage Unit Processor Improved Targeting Computer Hackware Relay Coupler [Swarmer] Protection Improved Medium Armor Plating Artifact Phase Redirector Weapon Remote Datajack Energy Gun EM Pulse Gun Energy Cannon Heavy Ion Cannon Ballistic Gun Improved Assault Rifle Ballistic Cannon Heavy Linear Accelerator Launcher Improved Grenade Launcher Special Weapon Remote Datajack Impact Weapon Core Stripper Slashing Weapon Sigix Broadsword Piercing Weapon Enhanced Force Lance Special Melee Weapon Improved Datajack Build | -11 -10 -10 -9 -9 -8 -8 -8 -8 -7 -7 -7 -7 -6 -6 -6 -6 -5 -5 -5 -5 -4 -4 -3 -3 -2 -2 -2 ------- Run | Yrd Mat Min Mat Min Mat Gar Mat Sto Fac Gar Fac Gar Fac Gar Fac Gar Fac Gar Fac Gar Fac Ext Res DSF Res Qua Sec Slots Evolved 16 | . . . 2 . 2 . . . 2 . . . 2 . . . 2 . . . 2 . 2 . 2 . . Power 1 | . . . . . . . . . . . . . . . . . . . . . . . . . 1 . . Propulsion 4 | . . . 1 . . . . . . . . . 1 . . . 1 . . . . . 1 . . . . Utility 10 | . . . 1 . 2 . . . 2 . . . . . . . 1 . . . 2 . 1 . 1 . . Weapon 1 | . . . . . . . . . . . . . 1 . . . . . . . . . . . . . . Parts Attached 451 | 7 6 5 35 4 30 31 4 17 22 48 9 11 20 17 5 13 16 27 6 13 7 14 5 11 13 54 1 Power 30 | 1 1 1 3 . 4 5 . . 1 2 . . 1 2 . . . . . . . 1 . . 1 7 . Engine 5 | 1 . . 2 . 2 . . . . . . . . . . . . . . . . . . . . . . Core 14 | . 1 1 1 . 2 5 . . 1 1 . . 1 1 . . . . . . . . . . . . . Reactor 11 | . . . . . . . . . . 1 . . . 1 . . . . . . . 1 . . 1 7 . Propulsion 90 | 2 . 2 11 1 6 6 . 2 . 11 3 2 5 1 4 2 3 4 3 . 1 3 1 3 2 11 1 Treads 48 | 2 . . 7 . 3 2 . 1 . 5 1 . 1 1 2 2 1 1 3 . 1 3 1 3 2 6 . Leg . | . . . . . . . . . . . . . . . . . . . . . . . . . . . . Wheel 36 | . . 2 4 1 3 4 . 1 . 6 2 2 4 . 2 . 2 3 . . . . . . . . . Hover 5 | . . . . . . . . . . . . . . . . . . . . . . . . . . 5 . Flight 1 | . . . . . . . . . . . . . . . . . . . . . . . . . . . 1 Utility 176 | 2 3 . 7 . 7 7 1 4 8 13 4 8 10 12 1 8 9 11 2 10 5 9 1 3 7 24 . Device 41 | 1 . . 1 . 5 4 . . 2 . 1 2 . 1 . 2 1 2 . 3 1 . . 1 4 10 . Storage 7 | 1 2 . 1 . . . . 1 . . . . . . . . . . . . . . . . . 2 . Processor 3 | . . . 1 . . . . . . . . . . . . . . . . . . . . . . 2 . Hackware 69 | . . . . . . . 1 3 3 7 2 5 7 6 1 6 6 7 2 6 2 3 . 1 1 . . Protection 54 | . 1 . 4 . 2 3 . . 3 6 1 1 3 5 . . 2 2 . 1 2 6 1 1 2 8 . Artifact 2 | . . . . . . . . . . . . . . . . . . . . . . . . . . 2 . Weapon 155 | 2 2 2 14 3 13 13 3 11 13 22 2 1 4 2 . 3 4 12 1 3 1 1 3 5 3 12 . Energy Gun 4 | 2 . . . . 1 . . . . . . . . . . . . . . . . . 1 . . . . Energy Cannon 19 | . . . 4 . 1 3 . 3 3 2 1 . . . . . . . . . . . . . . 2 . Ballistic Gun 35 | . 2 1 6 . 3 5 . 3 7 6 . . . . . . . 2 . . . . . . . . . Ballistic Cannon 40 | . . . 3 3 3 2 . 1 . 1 . 1 3 2 . 3 1 6 . 2 . . 1 2 1 5 . Launcher 19 | . . 1 1 . 5 2 2 1 . 4 1 . . . . . . 1 . . . . . . . 1 . Special Weapon 21 | . . . . . . . . . 1 8 . . 1 . . . 1 2 1 1 1 1 . 2 2 . . Impact Weapon 2 | . . . . . . . . . . . . . . . . . . . . . . . . . . 2 . Slashing Weapon 1 | . . . . . . . . . . . . . . . . . . . . . . . . . . 1 . Piercing Weapon 6 | . . . . . . . . . . . . . . . . . 2 1 . . . . 1 1 . 1 . Special Melee Weapon 8 | . . . . . . 1 1 3 2 1 . . . . . . . . . . . . . . . . . Unidentified Prototypes 6 | . 1 . . . . . . 2 . . . . . . . . . . . . . . . . . 3 . Corrupted Parts 3 | . . . . . . . . . . . . . . . . . . 1 . . . . . . . 2 . System Corruption 15 | . . . . . . . . . . . . . . . . . . 4 . . . . . . . 11 . Parts Lost 108 | . 1 7 7 . 7 14 . . 4 7 1 4 3 4 . . . 7 . . 1 4 . 1 3 24 9 Power 13 | . . 1 2 . . 2 . . . 1 . . 1 . . . . . . . . . . . . 5 1 Propulsion 34 | . . 3 2 . 3 4 . . . 5 1 2 1 2 . . . 2 . . . 1 . . . 4 4 Utility 44 | . 1 1 2 . 4 5 . . 3 1 . 1 . 2 . . . 2 . . 1 2 . 1 3 11 4 Weapon 17 | . . 2 1 . . 3 . . 1 . . 1 1 . . . . 3 . . . 1 . . . 4 . Highest Loss Streak 9 | . 1 7 3 . 4 6 . . 1 2 1 3 1 2 . . . 3 . . 1 3 . 1 1 9 9 To Critical Strikes . | . . . . . . . . . . . . . . . . . . . . . . . . . . . . Average Slot Usage (%) 86 | . 98 99 90 100 88 97 90 89 90 95 98 98 82 85 84 81 77 83 81 79 76 77 73 76 81 66 33 Core 3 | . 8 13 5 . 4 8 9 9 7 4 . . 5 4 . . . . . . . . . . . . . Reactor 3 | . . . . . . . . . . 2 7 7 . 1 6 6 5 5 5 5 5 5 4 4 7 6 2 Treads 12 | . 28 27 17 11 8 8 9 9 7 4 7 7 8 10 17 20 14 6 16 17 15 14 14 14 13 11 . Wheel 7 | . . . 12 21 16 17 18 18 15 14 13 13 7 4 . . 3 15 . . . . . . . . . Device 4 | . 2 . 1 11 20 20 9 1 4 4 4 11 3 . . . . . . 4 5 1 . 1 6 6 4 Storage 6 | . 14 14 11 11 9 9 9 8 7 7 7 7 6 6 6 6 5 5 5 5 5 5 4 4 4 4 4 Hackware 21 | . . . . . . . 5 16 20 25 32 31 26 33 40 34 31 31 34 29 33 31 28 31 29 14 . Protection 6 | . 10 13 10 11 7 13 12 9 11 13 7 1 6 3 . . 2 4 5 3 . 7 9 5 5 8 2 Energy Cannon 1 | . . . 4 . . 6 . 1 5 7 6 5 . . . . . . . . . . . . . . . Ballistic Gun 3 | . 21 27 12 . 3 7 9 6 4 1 . . . . . . . 1 . . . . . . . . . Ballistic Cannon 5 | . . . 4 22 12 4 2 6 3 . . 1 7 11 6 5 4 4 5 4 5 4 1 6 8 5 . Special Weapon 3 | . . . . . . . . . . 3 7 7 5 6 6 6 4 4 5 5 5 5 4 4 3 1 . Peak Build Rating 183 | 7 15 16 21 19 27 34 33 38 50 67 51 54 77 82 86 89 92 89 103 103 109 109 122 137 153 183 81 Average Rating 69 | 4 12 15 16 17 21 30 31 34 45 46 49 53 69 71 83 83 84 83 97 99 101 104 118 129 150 143 49 On Entrance 62 | . 7 15 3 16 19 27 33 31 35 47 51 50 54 66 81 84 88 88 87 98 101 103 86 122 137 140 81 Naked Turns . | . . . . . . . . . . . . . . . . . . . . . . . . . . . . Heaviest Build 215 | 15 36 36 102 103 111 120 120 109 111 134 131 132 149 140 140 147 160 160 142 156 159 161 172 172 189 215 31 Greatest Support 225 | 40 40 40 60 26 26 26 20 26 26 26 20 20 88 88 118 118 118 60 165 165 165 165 210 225 225 225 48 Greatest Overweight (x) 40 | . . 1 9 9 10 6 5 5 4 13 12 12 14 40 13 1 6 6 5 . . . . . 1 13 1 Average Overweight (x) 2 | . . . 2 3 4 3 5 4 3 4 6 7 5 2 2 . 2 3 . . . . . . . . . Largest Inventory Capacity 25 | 8 15 15 25 25 25 25 25 25 25 25 25 25 25 25 25 25 25 25 25 25 25 25 25 25 25 25 10 Average Capacity 23 | 7 9 15 21 25 25 25 25 24 25 25 25 25 25 25 25 25 25 25 25 25 25 25 25 25 25 23 7 Most Carried 25 | 6 10 12 25 25 25 25 25 25 25 25 25 25 25 25 25 25 25 25 25 25 25 25 21 25 25 25 10 Average Carried 22 | 3 8 11 17 23 24 24 24 23 23 24 24 24 20 23 24 24 23 24 24 23 23 24 19 22 24 21 7 Final Capacity 25 | 8 15 15 25 25 25 25 25 25 25 25 25 25 25 25 25 25 25 25 25 25 25 25 25 25 25 10 5 Final Carried 25 | 4 10 10 25 23 25 25 25 25 24 25 25 25 20 25 25 25 25 25 23 25 25 23 20 24 25 10 4 Class Distribution -------------------- 28% | Botlord-Tank 20% | Bothacker-Mutant 15% | Scavenger-Mutant 8% | Mutant 7% | Bothacker-Gunner 7% | Botlord-Gunner 6% | Bothacker-Tank 3% | Botlord-Mutant Dominant Class ---------------- Mutant | -10/Materials Mutant | -10/Mines Scavenger-Mutant | -9/Materials Scavenger-Mutant | -9/Mines Scavenger-Mutant | -8/Materials Scavenger-Mutant | -8/Garrison Bothacker-Mutant | -8/Materials Bothacker-Mutant | -8/Storage Bothacker-Mutant | -7/Factory Bothacker-Mutant | -7/Garrison Bothacker-Mutant | -7/Factory Bothacker-Mutant | -7/Garrison Bothacker-Tank | -6/Factory Bothacker-Tank | -6/Garrison Bothacker-Gunner | -6/Factory Botlord-Gunner | -6/Garrison Botlord-Gunner | -5/Factory Botlord-Tank | -5/Garrison Botlord-Tank | -5/Factory Botlord-Tank | -5/Garrison Botlord-Tank | -4/Factory Botlord-Tank | -4/Extension Botlord-Mutant | -3/Research Botlord-Mutant | -3/DSF Botlord-Tank | -2/Research Botlord-Tank | -2/Quarantine Alien-Mutant | -2/Section 7 Resources | -11 -10 -10 -9 -9 -8 -8 -8 -8 -7 -7 -7 -7 -6 -6 -6 -6 -5 -5 -5 -5 -4 -4 -3 -3 -2 -2 -2 ----------- Run | Yrd Mat Min Mat Min Mat Gar Mat Sto Fac Gar Fac Gar Fac Gar Fac Gar Fac Gar Fac Gar Fac Ext Res DSF Res Qua Sec Matter Collected 15573 | 261 290 98 1092 63 612 923 . 477 345 867 256 334 665 773 275 878 561 911 346 1099 355 786 . 395 681 2210 20 Remotely 755 | . . . . . . . . . . . . . . . . . 266 . . 94 . . . . 103 292 . Salvage Created 11632 | 102 607 204 1241 4 595 1112 3 377 571 574 457 900 502 270 30 199 100 830 118 73 163 193 . 381 747 1147 132 Parts 594 | 7 39 13 80 2 39 62 2 23 31 27 28 19 30 13 7 4 16 26 5 6 1 13 . . 37 52 12 Haulers Intercepted 7 | . 1 . 1 . 2 . . . 1 . 1 . . . . . . . 1 . . . . . . . . Recyclers Shooed 15 | . . 1 1 . 1 . . 1 . . . . 5 . . . 1 . 1 . . 2 . . . 2 . Parts Field Recycled . | . . . . . . . . . . . . . . . . . . . . . . . . . . . . Retrieved Matter . | . . . . . . . . . . . . . . . . . . . . . . . . . . . . Parts Self-Destructed . | . . . . . . . . . . . . . . . . . . . . . . . . . . . . Prevented . | . . . . . . . . . . . . . . . . . . . . . . . . . . . . Kills | -11 -10 -10 -9 -9 -8 -8 -8 -8 -7 -7 -7 -7 -6 -6 -6 -6 -5 -5 -5 -5 -4 -4 -3 -3 -2 -2 -2 ------- Run | Yrd Mat Min Mat Min Mat Gar Mat Sto Fac Gar Fac Gar Fac Gar Fac Gar Fac Gar Fac Gar Fac Ext Res DSF Res Qua Sec Combat Hostiles Destroyed 215 | . 13 7 29 . 18 32 2 5 9 15 4 4 5 7 1 6 3 8 1 1 1 2 . 1 17 23 1 Melee 16 | . . . . . . . . . . . . . . . . . . . . . . . . 1 . 14 1 Guns 61 | . 13 4 19 . 2 11 . 5 3 2 . . . . . . . 2 . . . . . . . . . Cannons 101 | . . . 6 . 6 17 . . 5 8 2 4 5 7 1 6 3 3 1 1 1 2 . . 17 6 . AOE 34 | . . 3 4 . 10 4 2 . . 5 2 . . . . . . 3 . . . . . . . 1 . Classes Destroyed 17 | 2 6 1 2 . 1 . . . 1 . 1 . 1 . . . . . . . . . . 1 . . 1 Worker 20 | . 1 . 5 . 3 . . 1 1 . 1 . 3 . 1 . 1 . . . . . . . 2 1 . Builder 16 | . 1 . 1 . . . . . 1 . 4 . 1 . 1 . 3 . . . . 2 . . . 2 . Tunneler 8 | 2 . 1 1 1 2 . . . . . . . 1 . . . . . . . . . . . . . . Hauler 7 | . 1 . 1 . 2 . . . 1 . 1 . . . . . . . 1 . . . . . . . . Recycler 16 | 1 . . 3 . 1 . . 3 1 . 2 . 3 . . . . . . . 1 . . . . 1 . Operator 2 | . . . . . . . . . . . . . 1 . . . 1 . . . . . . . . . . Watcher 8 | . 3 . 1 . 1 . . 1 1 . . . 1 . . . . . . . . . . . . . . Swarmer 50 | . 3 . 11 . 7 9 2 3 . 6 . . 2 . . . 2 1 . 2 . . . . 2 . . Grunt 80 | . 10 4 8 . 7 16 . 1 5 6 1 2 1 3 1 6 1 4 . 1 . 2 . . . 1 . Brawler 2 | . . . . . . . . . . . 1 . 1 . . . . . . . . . . . . . . Duelist 3 | . . . 1 . . . . . . 2 . . . . . . . . . . . . . . . . . Researcher 1 | . . . . . . . . . . . . . . . . . . . . . . . . . . . 1 Sentry 22 | . . . 9 . 2 4 . 1 2 . . . . 1 . . . . . . . . . . 3 . . Specialist 7 | . . . . . . . . . . . . . . . . . . . . . . . . 1 3 3 . Hunter 11 | . . . . . 2 3 . . . . . . . . . . . . . . 1 . . . . 5 . Programmer 38 | . . . . . . . . . 2 2 2 2 1 3 . . . 3 1 . . 1 . . 9 11 1 Lightning 3 | . . . . . . . . . . . . . . . . . . . . . . . . . . 3 . Assembled 3 | . . 3 . . . . . . . . . . . . . . . . . . . . . . . . . Best Kill Streak 9 | 3 3 3 8 1 8 4 2 5 5 4 4 1 4 4 1 2 4 4 1 1 1 1 . 1 9 5 1 Combat Bots Only 7 | . 3 3 6 . 6 4 2 3 4 4 2 1 3 4 1 2 2 4 1 1 1 1 . 1 7 5 1 Max Kills in Single Turn 5 | 1 2 2 5 1 3 2 1 2 1 2 2 1 1 1 1 1 1 1 1 1 1 1 . 1 2 1 1 Gunslinging 1 | . 1 1 . . . . . . . . . . . . . . . . . . . . . . . . . Exploded 2 | . . 2 2 . 2 2 1 . . 2 1 . . . . . . 1 . . . . . . . 1 . Melee 1 | . . . . . . . . . . . . . . . . . . . . . . . . 1 . 1 1 Uniques/NPCs Destroyed . | . . . . . . . . . . . . . . . . . . . . . . . . . . . . Combat | -11 -10 -10 -9 -9 -8 -8 -8 -8 -7 -7 -7 -7 -6 -6 -6 -6 -5 -5 -5 -5 -4 -4 -3 -3 -2 -2 -2 -------- Run | Yrd Mat Min Mat Min Mat Gar Mat Sto Fac Gar Fac Gar Fac Gar Fac Gar Fac Gar Fac Gar Fac Ext Res DSF Res Qua Sec Hostile Shots Fired 2374 | . 60 50 166 . 107 247 6 23 78 107 30 71 32 71 1 28 39 80 29 32 30 134 . 37 152 661 103 Missed 749 | . 16 10 48 . 33 78 3 5 39 33 15 19 8 21 . 9 12 13 5 13 13 47 . 8 30 219 52 Damage Taken 29700 | . 542 656 1539 . 990 2064 73 217 545 1210 219 404 568 915 35 433 827 1220 449 394 599 2218 . 551 3129 8640 1263 Core 3106 | . 65 100 167 . 116 263 . . 71 132 23 48 56 76 . 45 45 65 86 43 67 164 . 24 162 496 792 Absorbed by Shields 1994 | . . . . . . 263 . . 8 48 . 110 . 35 . . 7 113 . 41 18 184 . . 271 896 . Reduced by Siege Mode 10 | . . . . . . . . . . . . . . . . . . 10 . . . . . . . . . Redirected to Core 90 | . . . . . . . . . . . . . . . . . . . . . . . . . . 90 . Redirected to Shielding 75 | . . . . . . . . . . . . . . . . . . . . . . . . . . 37 38 Ignored by Resistances 906 | . . . . . . . . . . . . . . . . . . . . . . . . . . 906 . Regen/Repaired (Parts) 3711 | . . . 35 . . . . 519 . . . . . . 119 168 450 . 71 95 530 213 . . 298 1213 . Core Remaining (%) 68 | 100 . 34 . 58 . . . 31 . . . 60 . . . 79 . . . 76 . 79 . 98 . . . Volleys Fired 1475 | 9 54 15 104 6 47 170 4 29 39 103 31 118 58 71 13 67 54 72 33 71 31 96 2 8 67 103 . Largest 3 | 2 2 2 2 2 2 2 2 2 2 2 1 1 2 2 1 1 1 2 1 1 1 1 1 1 3 3 . Hottest 191 | 90 90 46 120 87 99 104 76 116 130 130 65 65 101 101 83 83 83 84 75 75 75 75 7 61 191 191 . Shots Fired 1999 | 18 108 28 185 12 83 263 5 49 67 126 32 119 61 102 14 68 55 82 34 71 31 96 2 8 116 164 . Gun 470 | 18 108 26 135 . 18 80 1 27 24 13 . . . . . 3 . 17 . . . . . . . . . Cannon 1084 | . . . 46 12 54 178 1 21 39 82 21 95 32 71 5 37 18 33 12 27 16 32 . 2 98 152 . Launcher 49 | . . 2 4 . 11 5 3 1 . 11 3 . . . . . . 8 . . . . . . . 1 . Special 396 | . . . . . . . . . 4 20 8 24 29 31 9 28 37 24 22 44 15 64 2 6 18 11 . Kinetic 1145 | . 78 26 171 12 64 129 2 44 40 20 . 7 32 71 5 37 18 50 12 27 16 32 . 2 98 152 . Thermal 385 | 9 15 . 10 . 8 129 . 4 23 75 21 88 . . . 3 . . . . . . . . . . . Explosive 48 | . . 2 4 . 11 5 3 1 . 11 3 . . . . . . 8 . . . . . . . . . Electromagnetic 25 | 9 15 . . . . . . . . . . . . . . . . . . . . . . . . 1 . Robot Hit Streak 26 | 8 14 7 16 7 21 24 . 5 12 11 15 24 10 10 5 8 7 9 13 25 10 26 1 6 16 4 . Robot Miss Streak 6 | 2 3 2 5 1 2 2 2 3 5 6 1 3 2 4 1 4 3 4 5 1 2 5 1 1 4 6 . Penetration Max 1 | . . . . . . . . 1 1 . . . . . . . . 1 . . . 1 . . . 1 . Secondary Targets 9 | . 2 1 4 . . 2 . . . . . . . . . . . . . . . . . . . . . Max Gunslinging Chain 1 | . 1 1 1 . . 1 . . . . . . . . . . . . . . . . . . . . . Shots Hit Robots 1254 | 11 72 19 129 8 53 123 7 34 49 59 27 84 46 48 11 30 35 59 17 44 19 76 1 10 72 108 3 Core Hits 453 | 3 27 15 51 1 45 61 3 12 23 29 16 28 8 8 1 6 8 22 2 2 3 2 . 1 31 43 2 Critical Kills 3 | . . 1 . . . 1 . . 1 . . . . . . . . . . . . . . . . . . Critical Parts Destroyed 5 | . . . 2 . . 2 . . . . . . . . . . . 1 . . . . . . . . . Critical Strikes 47 | 1 3 1 4 1 2 4 . 1 1 . . 1 2 1 . 1 . 2 . . 1 1 . 2 8 9 1 Burn 3 | . 3 . . . . . . . . . . . . . . . . . . . . . . . . . . Meltdown 1 | . . . . . . . . . 1 . . . . . . . . . . . . . . . . . . Destroy 7 | . . 1 2 . . 3 . . . . . . . . . . . 1 . . . . . . . . . Blast 28 | . . . 2 1 2 1 . 1 . . . 1 2 1 . 1 . . . . 1 1 . 2 8 4 . Corrupt 1 | 1 . . . . . . . . . . . . . . . . . . . . . . . . . . . Sever 3 | . . . . . . . . . . . . . . . . . . . . . . . . . . 3 . Impale 4 | . . . . . . . . . . . . . . . . . . 1 . . . . . . . 2 1 Melee Attacks 130 | . . . . . . . 8 10 5 1 . . . . . . 1 20 . . . . . 22 . 54 9 Kinetic 3 | . . . . . . . . . . . . . . . . . . . . . . . . . . 3 . Impact . | . . . . . . . . . . . . . . . . . . . . . . . . . . . . Slashing 31 | . . . . . . . . . . . . . . . . . . . . . . . . . . 31 . Piercing 72 | . . . . . . . . . . . . . . . . . 1 20 . . . . . 22 . 20 9 Sneak Attacks 11 | . . . . . . . 4 6 1 . . . . . . . . . . . . . . . . . . Combat Hostiles . | . . . . . . . . . . . . . . . . . . . . . . . . . . . . Follow-up Attacks . | . . . . . . . . . . . . . . . . . . . . . . . . . . . . Damage Inflicted 33977 | 165 1088 446 2663 169 2016 2705 171 695 1023 1616 876 1874 1527 728 301 766 852 2341 287 526 480 1722 . 206 2711 5893 130 Guns 5167 | 131 1088 318 1529 . 288 796 . 382 307 124 . . . . . . . 204 . . . . . . . . . Cannons 20945 | . . . 602 169 759 1660 . 265 716 977 489 1874 1515 728 301 766 826 527 287 526 480 1619 . 75 2692 3092 . Explosions 3393 | 29 . 128 532 . 969 249 171 48 . 515 387 . . . . . . 265 . . . . . . . 100 . Melee 3904 | . . . . . . . . . . . . . . . . . 26 1345 . . . . . 131 . 2272 130 Ramming 568 | 5 . . . . . . . . . . . . 12 . . . . . . . . 103 . . 19 429 . Kinetic 21335 | . 874 318 2061 169 994 1549 . 627 642 312 . 103 1515 728 301 766 826 731 287 526 480 1619 . 75 2692 3140 . Thermal 4660 | 67 113 . 70 . 53 907 . 20 381 789 489 1771 . . . . . . . . . . . . . . . Explosive 3264 | . . 128 532 . 969 249 171 48 . 515 387 . . . . . . 265 . . . . . . . . . Electromagnetic 294 | 93 101 . . . . . . . . . . . . . . . . . . . . . . . . 100 . Impact . | . . . . . . . . . . . . . . . . . . . . . . . . . . . . Slashing 1510 | . . . . . . . . . . . . . . . . . . . . . . . . . . 1510 . Piercing 2346 | . . . . . . . . . . . . . . . . . 26 1345 . . . . . 131 . 714 130 Highest Corruption 69 | . . . 1 1 . . . . 3 4 5 5 . 6 6 6 4 14 27 28 2 4 . . 18 69 25 Average Corruption 10 | . . . 1 1 . . . . 1 3 4 5 . 5 6 6 3 12 22 27 1 2 . . 12 33 22 Corruption Purged . | . . . . . . . . . . . . . . . . . . . . . . . . . . . . Corruption Blocked . | . . . . . . . . . . . . . . . . . . . . . . . . . . . . Effects 601 | . . . 8 . . . . . 1 41 17 47 . 57 21 57 7 55 42 76 2 18 . . 25 117 10 Message Errors 139 | . . . 1 . . . . . . 12 4 11 . 12 4 14 2 13 10 13 2 2 . . 6 31 2 Matter Fused 136 | . . . 1 . . . . . . 5 6 11 . 15 6 18 . 10 11 23 . 2 . . 7 19 2 Heat Flow Errors 59 | . . . 2 . . . . . . 5 2 4 . 8 3 7 . 4 2 8 . 5 . . . 9 . Energy Discharges 86 | . . . . . . . . . . 6 . 4 . 7 2 8 1 14 7 13 . 3 . . 4 15 2 Parts Rejected 9 | . . . 1 . . . . . . . . 1 . 2 . 1 . . . . . 2 . . . 1 1 Parts Fused 5 | . . . . . . . . . . 1 . 1 . . . . . . . 1 . . . . 1 1 . Data Loss (minor) 59 | . . . 3 . . . . . 1 4 2 3 . 4 1 4 3 6 6 9 . 3 . . . 10 . Data Loss (major) 28 | . . . . . . . . . . 4 2 2 . 1 2 4 . 4 1 4 . 1 . . 1 2 . Misfires 20 | . . . . . . . . . . 2 1 4 . 3 1 1 1 2 1 1 . . . . 1 2 . Alerts 21 | . . . . . . . . . . 2 . 3 . 3 2 . . 1 4 1 . . . . 3 2 . Misdirections 15 | . . . . . . . . . . . . . . . . . . . . 2 . . . . . 10 3 Weapon Failures 24 | . . . . . . . . . . . . 3 . 2 . . . 1 . 1 . . . . 2 15 . Overload Shots . | . . . . . . . . . . . . . . . . . . . . . . . . . . . . Overflow Damage 1903 | 14 . 9 30 21 61 . . . 11 61 14 29 404 5 100 54 114 119 12 121 30 174 . . 91 429 . Projectiles 1603 | . . . . 21 16 . . . 11 29 7 29 404 5 100 54 114 109 12 121 30 174 . . 91 276 . Explosions 137 | 14 . 9 30 . 45 . . . . 32 7 . . . . . . . . . . . . . . . . Melee 163 | . . . . . . . . . . . . . . . . . . 10 . . . . . . . 153 . Knockbacks 118 | . . . 4 3 6 4 . . . 1 . 1 6 5 . 3 4 6 . 2 7 10 . . 16 40 . Impact 5 | . . . . . . . . . . . . . . . . . . . . . . 1 . . . 4 . Kinetic 108 | . . . 4 3 6 4 . . . 1 . 1 6 5 . 3 3 5 . 2 5 8 . . 16 36 . Secondary 5 | . . . . . . . . . . . . . . . . . 1 1 . . 2 1 . . . . . Self-Inflicted Damage 254 | . . 23 25 . 44 20 45 . . 56 . . 6 . . . . 31 . . . . . . . 4 . Shots 10 | . . 1 1 . 3 1 1 . . 1 . . . . . . . 2 . . . . . . . . . Rammed 48 | 1 . . . . . . . . . . . . 2 . . . . . . . . 7 . . 3 35 . Targets Rammed 56 | 1 . . . . . . . . . . . . 2 . . . . . . . . 8 . . 3 42 . Kicked . | . . . . . . . . . . . . . . . . . . . . . . . . . . . . Crushed 8 | . . . . . . . . . . . . . . . . . . . . . . 1 . . . 7 . Highest Temperature 493 | 180 252 120 249 6 5 304 36 240 174 493 150 217 49 306 180 263 230 303 252 287 52 445 . 25 398 207 . Average Temperature 81 | 104 64 53 47 3 2 71 21 62 50 112 53 56 15 97 64 54 68 97 54 85 19 110 . 17 148 69 . Received Heat Transfer 4437 | . 297 149 561 . 387 851 . 54 124 291 54 119 99 110 9 108 9 136 27 48 18 375 . 198 193 58 162 Effects 20 | . 1 . 2 . . . . . . 2 . . . . . 1 . 2 . . . 4 . . 6 2 . Shutdowns 3 | . . . . . . . . . . 1 . . . . . . . . . . . . . . 2 . . Energy Bleed 3 | . 1 . . . . . . . . . . . . . . 1 . . . . . . . . 1 . . Interference 10 | . . . 2 . . . . . . 1 . . . . . . . 1 . . . 2 . . 2 2 . Matter Decay 1 | . . . . . . . . . . . . . . . . . . . . . . 1 . . . . . Short Circuit 3 | . . . . . . . . . . . . . . . . . . 1 . . . 1 . . 1 . . Siege Activations 1 | . . . . . . . . . . . . . . . . . . 1 . . . . . . . . . Total Turns 4 | . . . . . . . . . . . . . . . . . . 4 . . . . . . . . . Longest Duration 4 | . . . . . . . . . . . . . . . . . . 4 . . . . . . . . . Robots Corrupted 1 | . . . . . . . . . . . . . . . . . . . . . . . . . . 1 . Combat Hostiles 1 | . . . . . . . . . . . . . . . . . . . . . . . . . . 1 . Parts Fried 1 | 1 . . . . . . . . . . . . . . . . . . . . . . . . . . . Impact Corruptions 2 | . . . . . . . . . . . . . . . . . . 1 . . . . . . . 1 . Robots Melted 1 | . . . . . . . . . 1 . . . . . . . . . . . . . . . . . . Combat Hostiles 1 | . . . . . . . . . 1 . . . . . . . . . . . . . . . . . . Parts Melted 11 | . 1 . . . . 1 . . 4 2 1 . . . . . . . . . . . . . 2 . . Heat Transferred 7385 | 161 555 . 148 . 111 1825 . 37 555 978 610 2405 . . . . . . . . . . . . . . . Parts Sabotaged . | . . . . . . . . . . . . . . . . . . . . . . . . . . . . Parts Stolen . | . . . . . . . . . . . . . . . . . . . . . . . . . . . . Parts Stripped 12 | . . . . . . . . . . . . . . . . . . . . . . . . . . 12 . Power Chain Reactions 1 | 1 . . . . . . . . . . . . . . . . . . . . . . . . . . . Alert | -11 -10 -10 -9 -9 -8 -8 -8 -8 -7 -7 -7 -7 -6 -6 -6 -6 -5 -5 -5 -5 -4 -4 -3 -3 -2 -2 -2 ------- Run | Yrd Mat Min Mat Min Mat Gar Mat Sto Fac Gar Fac Gar Fac Gar Fac Gar Fac Gar Fac Gar Fac Ext Res DSF Res Qua Sec Peak Influence 2200 | 15 178 114 564 224 457 1097 624 429 263 1421 1034 1421 884 1903 1195 2200 1155 1637 1188 1580 1357 1395 570 478 618 463 325 Initial 1155 | . 9 9 . 219 9 9 534 263 140 119 745 723 745 605 998 836 1155 404 858 817 829 664 570 427 268 316 132 Average 718 | 4 77 35 272 184 237 494 567 330 122 769 779 1110 760 1225 1059 1611 490 1095 833 1304 1129 1006 570 456 351 227 192 Maximum Alert Level 5 | . . . 2 1 2 3 2 2 1 4 3 4 3 5 4 5 4 5 4 4 4 4 2 2 2 2 1 Low Security (%) 19 | 100 100 100 25 18 45 25 . . 90 5 . . . . . . . . . . . . . . 16 46 58 Level 1 15 | . . . 53 81 36 14 . 82 9 18 . . . . . . 20 . . . . . . . 39 42 41 Level 2 16 | . . . 21 . 17 29 100 17 . 27 14 . 17 2 . . 77 20 7 . . 14 100 100 44 10 . Level 3 22 | . . . . . . 29 . . . 13 85 24 82 47 74 18 . 28 78 16 29 44 . . . . . Level 4 20 | . . . . . . . . . . 34 . 75 . 28 25 30 . 45 14 83 70 41 . . . . . Level 5 5 | . . . . . . . . . . . . . . 22 . 51 . 5 . . . . . . . . . High Security . | . . . . . . . . . . . . . . . . . . . . . . . . . . . . Max Security . | . . . . . . . . . . . . . . . . . . . . . . . . . . . . Squads Dispatched 70 | . 3 . 2 . 2 . 1 2 4 . 7 . 5 . 2 . 4 . 10 . 3 11 . . 5 8 1 Investigation 15 | . 2 . 1 . 2 . . 1 1 . 1 . . . 1 . 1 . . . 1 3 . . . 1 . Extermination 14 | . . . . . . . . . 2 . 2 . 1 . . . 1 . 1 . 1 . . . 2 4 . Reinforcement 25 | . 1 . 1 . . . 1 . 1 . 2 . 1 . . . 2 . 6 . . 3 . . 3 3 1 Assault 11 | . . . . . . . . . . . 1 . 1 . 1 . . . 2 . 1 5 . . . . . Garrison 5 | . . . . . . . . 1 . . 1 . 2 . . . . . 1 . . . . . . . . Intercept . | . . . . . . . . . . . . . . . . . . . . . . . . . . . . Searches Triggered . | . . . . . . . . . . . . . . . . . . . . . . . . . . . . Construction Impeded 8 | . . . . . . . 1 . . . 1 . 1 . . . . . 1 . . 3 . . 1 . . Haulers Reinforced 3 | . . . . . . . . . . . 1 . . . . . 1 . 1 . . . . . . . . Active Scanning Responses . | . . . . . . . . . . . . . . . . . . . . . . . . . . . . Cargo Convoy Interrupts 1 | . . . . . . . . . . . . . . . . . . . 1 . . . . . . . . Stealth | -11 -10 -10 -9 -9 -8 -8 -8 -8 -7 -7 -7 -7 -6 -6 -6 -6 -5 -5 -5 -5 -4 -4 -3 -3 -2 -2 -2 --------- Run | Yrd Mat Min Mat Min Mat Gar Mat Sto Fac Gar Fac Gar Fac Gar Fac Gar Fac Gar Fac Gar Fac Ext Res DSF Res Qua Sec Distress Signals 30 | . 1 . 2 . 2 . . 2 2 . 3 . 5 . . . 3 . 2 . . 4 . . 1 1 2 Communications Jammed . | . . . . . . . . . . . . . . . . . . . . . . . . . . . . Distress Signals . | . . . . . . . . . . . . . . . . . . . . . . . . . . . . Times Spotted 777 | . 22 22 41 . 29 36 7 19 26 44 24 26 39 34 14 41 33 38 26 34 24 82 . 3 40 50 23 Peak Tracking Total 18 | . 3 13 7 . 7 4 5 4 9 8 6 4 9 4 4 7 9 8 6 9 5 18 . 1 8 8 18 Tactical Retreats 34 | . 1 1 4 . 2 2 . 1 3 2 . . 2 1 . . . 1 . 3 . 5 . . 2 3 1 Traps | -11 -10 -10 -9 -9 -8 -8 -8 -8 -7 -7 -7 -7 -6 -6 -6 -6 -5 -5 -5 -5 -4 -4 -3 -3 -2 -2 -2 ------- Run | Yrd Mat Min Mat Min Mat Gar Mat Sto Fac Gar Fac Gar Fac Gar Fac Gar Fac Gar Fac Gar Fac Ext Res DSF Res Qua Sec Traps Triggered 58 | . 2 . 3 . 2 11 . 1 3 4 . 4 3 6 . 2 4 6 2 3 . . . . . 2 . Indirectly . | . . . . . . . . . . . . . . . . . . . . . . . . . . . . Trap Hack Attempts . | . . . . . . . . . . . . . . . . . . . . . . . . . . . . Triggered . | . . . . . . . . . . . . . . . . . . . . . . . . . . . . Disarmed . | . . . . . . . . . . . . . . . . . . . . . . . . . . . . Reprogrammed . | . . . . . . . . . . . . . . . . . . . . . . . . . . . . Reused . | . . . . . . . . . . . . . . . . . . . . . . . . . . . . Traps Extracted . | . . . . . . . . . . . . . . . . . . . . . . . . . . . . Installed . | . . . . . . . . . . . . . . . . . . . . . . . . . . . . Triggered 1 | . . . . . . . . . . . . . . . . . . . 1 . . . . . . . . Machines | -11 -10 -10 -9 -9 -8 -8 -8 -8 -7 -7 -7 -7 -6 -6 -6 -6 -5 -5 -5 -5 -4 -4 -3 -3 -2 -2 -2 ---------- Run | Yrd Mat Min Mat Min Mat Gar Mat Sto Fac Gar Fac Gar Fac Gar Fac Gar Fac Gar Fac Gar Fac Ext Res DSF Res Qua Sec Machines Disabled 85 | . . . 1 . 3 3 1 2 . 10 3 8 . 10 2 6 5 6 1 6 3 3 . 1 . 9 2 Max in Single Turn 3 | . . . 1 . 1 1 1 1 . 3 . 1 . 1 . 1 1 1 . 1 . 1 . 1 . 1 1 Garrison Access 2 | . . . . . . . . 1 . . . . . . . . . . 1 . . . . . . . . Garrison Relay 35 | . . . . . . 4 . . . 5 . 6 . 4 . 5 . 4 . 7 . . . . . . . Energy Cycler 4 | . . . . . . . . . . . . . . . . . . . . . . 4 . . . . . Machines Repaired . | . . . . . . . . . . . . . . . . . . . . . . . . . . . . Machines Dismantled . | . . . . . . . . . . . . . . . . . . . . . . . . . . . . Machines Sabotaged . | . . . . . . . . . . . . . . . . . . . . . . . . . . . . Overloaded Fab Kills . | . . . . . . . . . . . . . . . . . . . . . . . . . . . . Hacking | -11 -10 -10 -9 -9 -8 -8 -8 -8 -7 -7 -7 -7 -6 -6 -6 -6 -5 -5 -5 -5 -4 -4 -3 -3 -2 -2 -2 --------- Run | Yrd Mat Min Mat Min Mat Gar Mat Sto Fac Gar Fac Gar Fac Gar Fac Gar Fac Gar Fac Gar Fac Ext Res DSF Res Qua Sec Machines Accessed 69 | . 5 . 4 . 3 1 1 9 4 3 3 1 3 1 1 2 3 3 3 1 2 9 1 . 1 5 . Terminals 53 | . 5 . 3 . 2 1 1 6 2 3 2 1 1 1 . 2 1 3 1 1 1 9 1 . 1 5 . Fabricators . | . . . . . . . . . . . . . . . . . . . . . . . . . . . . Repair Stations 5 | . . . 1 . . . . 1 . . . . 1 . . . 1 . 1 . . . . . . . . Recycling Units 2 | . . . . . . . . 1 1 . . . . . . . . . . . . . . . . . . Scanalyzers 1 | . . . . . . . . . . . . . . . . . . . . . 1 . . . . . . Garrison Access 8 | . . . . . 1 . . 1 1 . 1 . 1 . 1 . 1 . 1 . . . . . . . . Total Hacks 128 | . 11 . 6 . 8 2 2 14 5 3 5 2 5 2 1 5 8 3 5 2 3 23 2 . 2 9 . Successful 58 | . 4 . 4 . 5 . . 9 2 2 3 . 2 1 1 2 3 3 3 1 . 8 1 . . 4 . Failed 70 | . 7 . 2 . 3 2 2 5 3 1 2 2 3 1 . 3 5 . 2 1 3 15 1 . 2 5 . Catastrophic 17 | . . . 1 . 1 1 1 2 1 1 1 . . 1 . 1 . . . 1 . 3 . . 1 1 . Database Lockouts . | . . . . . . . . . . . . . . . . . . . . . . . . . . . . Manual 7 | . . . . . . . 2 2 . . 2 . . . . . . . . . . . . . . 1 . Terminals 102 | . 11 . 4 . 7 2 2 9 2 3 4 2 2 2 . 5 3 3 2 2 1 23 2 . 2 9 . Fabricators . | . . . . . . . . . . . . . . . . . . . . . . . . . . . . Repair Stations 12 | . . . 2 . . . . 2 . . . . 2 . . . 4 . 2 . . . . . . . . Recycling Units 4 | . . . . . . . . 2 2 . . . . . . . . . . . . . . . . . . Scanalyzers 2 | . . . . . . . . . . . . . . . . . . . . . 2 . . . . . . Garrison Access 8 | . . . . . 1 . . 1 1 . 1 . 1 . 1 . 1 . 1 . . . . . . . . Terminal Hacks 41 | . 4 . 2 . 4 . . 5 1 2 2 . . 1 . 2 . 3 1 1 . 8 1 . . 4 . Record 2 | . . . . . . . . . . . . . . . . . . . . . . . . . . 2 . Open Door 10 | . . . . . . . . 4 . . . . . . . 1 . 1 . . . 4 . . . . . Open DSF 1 | . . . . . . . . . . . . . . . . . . . . . . . 1 . . . . Emergency Access Points 5 | . . . . . 1 . . . . 1 . . . 1 . 1 . 1 . . . . . . . . . Alert Level 2 | . . . 1 . 1 . . . . . . . . . . . . . . . . . . . . . . Unreport Threat 8 | . . . . . 2 . . 1 1 . 1 . . . . . . . . . . 3 . . . . . Locate Traps 4 | . 2 . . . . . . . . . 1 . . . . . . . . . . 1 . . . . . Hauler Manifests 1 | . 1 . . . . . . . . . . . . . . . . . . . . . . . . . . Zone Layout 5 | . 1 . 1 . . . . . . . . . . . . . . . 1 . . . . . . 2 . Garrison Registry 2 | . . . . . . . . . . . . . . . . . . 1 . 1 . . . . . . . Patrol Navigation 1 | . . . . . . . . . . 1 . . . . . . . . . . . . . . . . . Fabricator Hacks . | . . . . . . . . . . . . . . . . . . . . . . . . . . . . Repair Station Hacks 8 | . . . 2 . . . . 2 . . . . 1 . . . 2 . 1 . . . . . . . . Scan Component 5 | . . . 1 . . . . 1 . . . . 1 . . . 1 . 1 . . . . . . . . Repair 3 | . . . 1 . . . . 1 . . . . . . . . 1 . . . . . . . . . . Recycling Unit Hacks 1 | . . . . . . . . 1 . . . . . . . . . . . . . . . . . . . Retrieve Components 1 | . . . . . . . . 1 . . . . . . . . . . . . . . . . . . . Scanalyzer . | . . . . . . . . . . . . . . . . . . . . . . . . . . . . Garrison Access Hacks 8 | . . . . . 1 . . 1 1 . 1 . 1 . 1 . 1 . 1 . . . . . . . . Unlock Access 7 | . . . . . 1 . . . 1 . 1 . 1 . 1 . 1 . 1 . . . . . . . . Seal Access 1 | . . . . . . . . 1 . . . . . . . . . . . . . . . . . . . Unauthorized Hacks . | . . . . . . . . . . . . . . . . . . . . . . . . . . . . Terminals . | . . . . . . . . . . . . . . . . . . . . . . . . . . . . Fabricators . | . . . . . . . . . . . . . . . . . . . . . . . . . . . . Repair Stations . | . . . . . . . . . . . . . . . . . . . . . . . . . . . . Recycling Units . | . . . . . . . . . . . . . . . . . . . . . . . . . . . . Scanalyzers . | . . . . . . . . . . . . . . . . . . . . . . . . . . . . Garrison Access . | . . . . . . . . . . . . . . . . . . . . . . . . . . . . Data Cores Recovered . | . . . . . . . . . . . . . . . . . . . . . . . . . . . . Used . | . . . . . . . . . . . . . . . . . . . . . . . . . . . . Hacking Detections 44 | . 2 . 1 . 2 1 1 5 3 2 2 1 3 1 1 1 1 2 1 1 2 7 1 . 1 2 . Full Trace Events 11 | . . . 1 . . . . 1 . . 1 . . 1 . 1 . . . 1 1 3 . . . 1 . Feedback Events . | . . . . . . . . . . . . . . . . . . . . . . . . . . . . Feedback Blocked . | . . . . . . . . . . . . . . . . . . . . . . . . . . . . Robot Schematics Acquired 3 | . . . . . . . . . . . . . . . . . . . . . . . . . . 3 . Robots Built . | . . . . . . . . . . . . . . . . . . . . . . . . . . . . Authchips . | . . . . . . . . . . . . . . . . . . . . . . . . . . . . Time . | . . . . . . . . . . . . . . . . . . . . . . . . . . . . Total Robot Build Rating . | . . . . . . . . . . . . . . . . . . . . . . . . . . . . Part Schematics Acquired 3 | . . . . . . . . . . . . . . . . . . . . . . . . . . 3 . Parts Built . | . . . . . . . . . . . . . . . . . . . . . . . . . . . . Authchips . | . . . . . . . . . . . . . . . . . . . . . . . . . . . . Time . | . . . . . . . . . . . . . . . . . . . . . . . . . . . . Total Part Build Rating . | . . . . . . . . . . . . . . . . . . . . . . . . . . . . Parts Repaired 3 | . . . 1 . . . . 1 . . . . . . . . 1 . . . . . . . . . . Time 132 | . . . 38 . . . . 26 . . . . . . . . 68 . . . . . . . . . . Parts Recycled . | . . . . . . . . . . . . . . . . . . . . . . . . . . . . Recycled Matter . | . . . . . . . . . . . . . . . . . . . . . . . . . . . . Retrieved Matter . | . . . . . . . . . . . . . . . . . . . . . . . . . . . . Retrieved Components 9 | . . . . . . . . 9 . . . . . . . . . . . . . . . . . . . Parts Scanalyzed . | . . . . . . . . . . . . . . . . . . . . . . . . . . . . Part Schematics Acquired . | . . . . . . . . . . . . . . . . . . . . . . . . . . . . Parts Damaged . | . . . . . . . . . . . . . . . . . . . . . . . . . . . . Bothacking | -11 -10 -10 -9 -9 -8 -8 -8 -8 -7 -7 -7 -7 -6 -6 -6 -6 -5 -5 -5 -5 -4 -4 -3 -3 -2 -2 -2 ------------ Run | Yrd Mat Min Mat Min Mat Gar Mat Sto Fac Gar Fac Gar Fac Gar Fac Gar Fac Gar Fac Gar Fac Ext Res DSF Res Qua Sec Used RIF Installer 6 | . . . . . . 1 . . . 1 . . . 1 . 1 . 1 . 1 . . . . . . . Coupler Efficiency 1 | . . . . . . . . . . . . . . 1 . . . . . . . . . . . . . Hotswap 1 | . . . . . . . . . . . . . . . . . . . . 1 . . . . . . . Command Fork 1 | . . . . . . . . . . 1 . . . . . . . . . . . . . . . . . Threat Obfuscator 1 | . . . . . . . . . . . . . . . . . . 1 . . . . . . . . . Patrol Navigation 1 | . . . . . . . . . . . . . . . . 1 . . . . . . . . . . . Robots Hacked 171 | . . . . . . . 2 6 5 12 4 12 13 16 4 12 12 13 11 14 8 13 1 2 7 4 . Non-combat 22 | . . . . . . . 2 3 . . . . . . 1 . 2 . 4 . 3 2 1 . 1 3 . Combat 149 | . . . . . . . . 3 5 12 4 12 13 16 3 12 10 13 7 14 5 11 . 2 6 1 . Robot Hacks Applied 187 | . . . . . . . 2 6 5 12 5 13 14 17 4 12 20 13 12 15 8 13 1 2 8 5 . no_distress 1 | . . . . . . . . 1 . . . . . . . . . . . . . . . . . . . drop_inventory 1 | . . . . . . . . . . . . . . . . . . . . . . . 1 . . . . find_recycling 1 | . . . . . . . . 1 . . . . . . . . . . . . . . . . . . . ignore_parts 1 | . . . . . . . . 1 . . . . . . . . . . . . . . . . . . . purge_threat 11 | . . . . . . . . . . . . . . . . . 8 . 2 . . . . . . 1 . map_route 3 | . . . . . . . 1 . . . . . . . . . . . 1 . 1 . . . . . . disable_scanner 1 | . . . . . . . . . . . . . . . . . . . . . . . . . . 1 . locate_prototypes 1 | . . . . . . . . . . . . . . . . . . . . . . . . . . 1 . find_shortcuts 2 | . . . . . . . . . . . . 1 . 1 . . . . . . . . . . . . . find_garrison 3 | . . . . . . . . . . . 1 . 1 . . . . . 1 . . . . . . . . scatter_targeting 2 | . . . . . . . . . . . . . . . . . 2 . . . . . . . . . . spike_heat 1 | . . . . . . . . . . . . . . . . . . . . . . 1 . . . . . overload_power 2 | . . . . . . . . . . . 1 . . . . . . . . . . 1 . . . . . amplify_resonance 8 | . . . . . . . . . 1 2 . . 1 . . . 2 1 . . . 1 . . . . . reboot_system 4 | . . . . . . . . . . . . 1 1 . . 1 . . . . 1 . . . . . . overwrite_iff 48 | . . . . . . . . . 2 6 2 4 3 7 . 3 3 6 2 2 2 4 . . 2 . . streamctrl_high 2 | . . . . . . . . . . . . . . . . . . . . 1 . . . . 1 . . formatsys_low 9 | . . . . . . . 1 . . . . . . . 1 . . . 1 . 2 1 . . 2 1 . formatsys_high 85 | . . . . . . . . 3 2 4 1 7 8 9 3 8 5 6 5 12 2 4 . 2 3 1 . formatsys_deep 1 | . . . . . . . . . . . . . . . . . . . . . . 1 . . . . . Relay Couplers Released 153 | . . . . . . 17 . . . 19 . 25 . 22 4 16 . 17 5 28 . . . . . . . Machine Destruction 142 | . . . . . . 17 . . . 19 . 25 . 19 . 16 . 17 1 28 . . . . . . . Programmers 11 | . . . . . . . . . . . . . . 3 4 . . . 4 . . . . . . . . Attached 67 | . . . . . . . 1 3 2 7 2 5 7 6 1 5 6 7 2 6 2 3 . 1 1 . . Fabnet Peak Effective % . | . . . . . . . . . . . . . . . . . . . . . . . . . . . . Robots Rewired 30 | . . . . . . . . . . . 1 . . . . 4 . 5 . 4 . 16 . . . . . Allies Hacked 9 | . . . . . . . . . . . . 1 . 2 . . . . . . 2 1 . . 3 . . Hacks Repelled . | . . . . . . . . . . . . . . . . . . . . . . . . . . . . Allies | -11 -10 -10 -9 -9 -8 -8 -8 -8 -7 -7 -7 -7 -6 -6 -6 -6 -5 -5 -5 -5 -4 -4 -3 -3 -2 -2 -2 -------- Run | Yrd Mat Min Mat Min Mat Gar Mat Sto Fac Gar Fac Gar Fac Gar Fac Gar Fac Gar Fac Gar Fac Ext Res DSF Res Qua Sec Total Allies 230 | . . 1 . . . . 1 6 4 13 4 12 17 18 7 20 10 17 11 26 7 43 . 2 9 2 . Largest Group 22 | . . 1 . . . . 1 4 2 4 3 4 6 6 9 15 6 9 10 12 14 22 . 2 4 2 . Highest-Rated Group 1053 | . . 31 . . . . 10 108 46 190 222 172 194 145 259 395 213 537 536 639 730 1053 . 205 288 214 . Highest-Rated Ally 178 | . . 31 . . . . 10 31 31 95 95 92 47 32 47 47 41 119 119 119 119 159 . 137 178 178 . Total Orders 50 | . . . . . . . . . . 2 . 2 . . 1 13 . 4 5 3 2 13 . . 3 2 . STAY 10 | . . . . . . . . . . 1 . 1 . . . 2 . 3 . 1 . 1 . . 1 . . FOLLOW 14 | . . . . . . . . . . 1 . 1 . . . 4 . 1 1 1 . 4 . . 1 . . AID 26 | . . . . . . . . . . . . . . . 1 7 . . 4 1 2 8 . . 1 2 . Ally Attacks 1675 | . . 6 . . . . . 49 8 47 49 73 106 116 55 191 86 78 99 139 113 386 . 9 40 25 . Total Damage 47411 | . . 64 . . . . . 978 138 1110 1778 1220 2102 1966 1057 4693 2218 2813 3654 4698 3338 11085 . 579 2515 1405 . Kills 336 | . . 1 . . . . . 12 . 15 17 13 17 17 13 31 20 24 27 24 19 67 . 1 12 6 . Allies Corrupted 13 | . . . . . . . . . . . 1 2 1 . . . . . 1 2 1 3 . . 2 . . Allies Melted 3 | . . . . . . . . . . . . . . . 1 1 . . . 1 . . . . . . . Intel | -11 -10 -10 -9 -9 -8 -8 -8 -8 -7 -7 -7 -7 -6 -6 -6 -6 -5 -5 -5 -5 -4 -4 -3 -3 -2 -2 -2 ------- Run | Yrd Mat Min Mat Min Mat Gar Mat Sto Fac Gar Fac Gar Fac Gar Fac Gar Fac Gar Fac Gar Fac Ext Res DSF Res Qua Sec Robot Analysis Total . | . . . . . . . . . . . . . . . . . . . . . . . . . . . . Derelict Logs Recovered 2 | . . . . 2 . . . . . . . . . . . . . . . . . . . . . . . Drone Launches . | . . . . . . . . . . . . . . . . . . . . . . . . . . . . Drone Recoveries . | . . . . . . . . . . . . . . . . . . . . . . . . . . . . Exploration | -11 -10 -10 -9 -9 -8 -8 -8 -8 -7 -7 -7 -7 -6 -6 -6 -6 -5 -5 -5 -5 -4 -4 -3 -3 -2 -2 -2 ------------- Run | Yrd Mat Min Mat Min Mat Gar Mat Sto Fac Gar Fac Gar Fac Gar Fac Gar Fac Gar Fac Gar Fac Ext Res DSF Res Qua Sec Turns Passed 31207 | 110 1211 828 1877 493 879 2116 234 722 1066 1906 671 1575 998 2309 790 2074 1205 1507 929 1371 673 1655 199 411 1168 2106 124 Spaces Moved 14857 | 43 616 487 920 341 426 928 133 364 602 921 328 680 424 878 302 759 447 803 506 708 320 800 116 203 640 990 172 Core 70 | 2 . . 1 . . . . . . . . . . 2 . . . . . . . . . . . . 65 Treads 7442 | 41 616 480 280 . . . . . . . . . 108 607 273 759 266 2 461 708 320 800 116 203 640 762 . Legs . | . . . . . . . . . . . . . . . . . . . . . . . . . . . . Wheels 7010 | . . 7 639 341 426 928 133 364 602 921 328 680 316 269 29 . 181 801 45 . . . . . . . . Hover 291 | . . . . . . . . . . . . . . . . . . . . . . . . . . 228 63 Flight 44 | . . . . . . . . . . . . . . . . . . . . . . . . . . . 44 Fastest Speed 44 | 50 160 80 95 135 135 135 155 95 135 140 170 170 155 155 243 163 165 131 163 163 163 163 163 145 145 44 45 Average Speed 167 | 154 160 158 153 137 148 142 155 154 145 159 177 186 198 228 246 235 215 145 163 163 163 163 163 150 145 141 50 Slowest Speed 2050 | 160 160 160 450 215 230 190 155 155 150 275 260 260 290 2050 320 245 243 330 165 163 163 165 163 163 225 840 120 Overloaded Moves . | . . . . . . . . . . . . . . . . . . . . . . . . . . . . Propulsion Burnouts . | . . . . . . . . . . . . . . . . . . . . . . . . . . . . Robots Hopped . | . . . . . . . . . . . . . . . . . . . . . . . . . . . . Cave-ins Triggered . | . . . . . . . . . . . . . . . . . . . . . . . . . . . . Exploration Rate (%) 48 | 4 93 85 76 43 43 71 19 50 25 98 11 62 15 79 7 68 14 91 18 76 8 87 4 96 18 72 17 Regions Visited 27 Branch Regions 6 Pre-discovered Areas . | . . . . . . . . . . . . . . . . . . . . . . . . . . . . Known Exits Taken 9 | . . . . . 1 . . . 1 . 1 . 1 . 1 . 1 . 1 . . . 1 . . 1 . Unknown Exits Taken 10 | 1 1 1 1 1 . . 1 1 . . . . . . . . . . . . 1 1 . . 1 . . Scrap Searched 1 | . . 1 . . . . . . . . . . . . . . . . . . . . . . . . . Spaces Dug 37 | . . . . . 7 1 5 . . 12 . . . . . . . . 6 1 2 . . . 1 1 1 Terrain Destroyed 434 | . . 11 24 1 60 34 25 17 2 84 28 . 8 1 1 5 4 20 10 4 9 11 . . 28 46 1 Melee 2 | . . . . . . . . . . . . . . . . . . . . . . . . . . 1 1 Projectile 144 | . . . . 1 1 4 1 4 2 1 . . 8 1 1 5 4 4 10 4 9 11 . . 28 45 . AOE 288 | . . 11 24 . 59 30 24 13 . 83 28 . . . . . . 16 . . . . . . . . . Terrain Rammed . | . . . . . . . . . . . . . . . . . . . . . . . . . . . . Walls Destroyed . | . . . . . . . . . . . . . . . . . . . . . . . . . . . . Machines Disabled . | . . . . . . . . . . . . . . . . . . . . . . . . . . . . Actions | -11 -10 -10 -9 -9 -8 -8 -8 -8 -7 -7 -7 -7 -6 -6 -6 -6 -5 -5 -5 -5 -4 -4 -3 -3 -2 -2 -2 --------- Run | Yrd Mat Min Mat Min Mat Gar Mat Sto Fac Gar Fac Gar Fac Gar Fac Gar Fac Gar Fac Gar Fac Ext Res DSF Res Qua Sec Total 19124 | 65 736 511 1188 355 587 1463 156 471 723 1243 386 882 518 1104 335 982 641 1043 593 877 444 1083 125 275 775 1373 190 Wait 1336 | . 47 4 104 . 55 204 1 24 24 81 12 23 6 57 14 110 107 23 41 61 82 149 . 11 38 58 . Move 14834 | 43 615 486 919 340 426 927 132 363 601 920 328 679 423 877 301 758 447 802 505 707 319 799 115 202 639 989 172 Hop . | . . . . . . . . . . . . . . . . . . . . . . . . . . . . Pick Up 283 | 6 7 1 17 1 15 26 3 22 13 28 3 11 5 25 1 9 8 22 3 16 . 5 1 5 6 23 1 Fast Attach 137 | 5 3 . 14 . 4 1 1 3 2 5 2 4 2 6 2 9 2 10 . 1 3 7 3 7 5 33 3 Attach 146 | 2 . 2 9 . 6 14 1 . 5 13 2 4 12 8 . 3 10 13 4 5 3 5 2 2 3 17 1 Detach 81 | . 2 . 6 . . 1 . 1 . 6 . 3 4 4 . 7 5 5 1 2 3 4 1 7 3 16 . Swap 173 | . 3 3 12 4 20 17 2 14 15 30 5 3 6 3 3 1 4 4 2 7 1 2 . 2 5 5 . Drop 206 | . 5 . 3 4 14 15 4 5 11 24 3 5 . 19 1 11 1 23 4 6 1 8 1 8 6 20 4 Fire 1475 | 9 54 15 104 6 47 170 4 29 39 103 31 118 58 71 13 67 54 72 33 71 31 96 2 8 67 103 . Melee 129 | . . . . . . . 8 10 5 1 . . . . . . 1 20 . . . . . 22 . 53 9 Ram 3 | . . . . . . . . . . . . . 1 . . . . . . . . . . . . 2 . Kick . | . . . . . . . . . . . . . . . . . . . . . . . . . . . . Crush 53 | . . . . . . . . . . . . . 1 . . . . . . . . 8 . . 3 41 . Escape Stasis 234 | . . . . . . 88 . . 8 32 . 32 . 34 . 6 2 19 . . . . . . . 13 . Rewire 34 | . . . . . . . . . . . . . . . . 1 . 30 . 1 1 . . 1 . . . Trap . | . . . . . . . . . . . . . . . . . . . . . . . . . . . . Miscellaneous . | . . . . . . . . . . . . . . . . . . . . . . . . . . . . Route ------- -11/Scrapyard -10/Materials (discovered 4 exits: *Mat x3 / [*Min]) -10/Mines (discovered 2 exits: *Mat x2) -9/Materials (discovered 2 exits: *Mat / [*Min]) -9/Mines -8/Materials -8/Garrison (discovered 3 exits: *Mat x3) -8/Materials -8/Storage (discovered 2 exits: *Fac / Rec) -7/Factory (discovered 2 exits: *Fac / Gar) -7/Garrison (discovered 3 exits: *Fac x3) -7/Factory (discovered 2 exits: [*Low] / Gar) -7/Garrison (discovered 2 exits: *Fac x2) -6/Factory -6/Garrison (discovered 4 exits: *Fac x4) -6/Factory -6/Garrison (discovered 2 exits: *Fac x2) -5/Factory -5/Garrison (discovered 3 exits: *Fac x3) -5/Factory (discovered 3 exits: *Fac x2 / Gar) -5/Garrison (discovered 3 exits: *Fac x3) -4/Factory (discovered 3 exits: Res / [*Upp] / *Ext) -4/Extension (discovered 3 exits: *Res x2 / [*Cet]) -3/Research -3/DSF -2/Research (discovered 2 exits: *Acc / *Qua) -2/Quarantine (discovered 2 exits: *Acc / *Sec) -2/Section 7 (discovered 1 exit: *Acc) History --------- Turn | Location | Event 41 | -11/Scrapyard | Discovered new exit (range 15) 111 | -11/Scrapyard | Entered Materials 306 | -10/Materials | Build established: Mutant 436 | -10/Materials | Discovered new exit (range 15) 449 | -10/Materials | Discovered new exit (range 5) 633 | -10/Materials | Discovered new exit (range 8) 1203 | -10/Materials | Discovered new exit (range 14) 1322 | -10/Materials | Entered Mines 1403 | -10/Mines | Met a Derelict bent on vengeance 1754 | -10/Mines | Discovered new exit (range 9) 1886 | -10/Mines | Received a Mining Laser from a helpful Derelict 2102 | -10/Mines | Assembled infested the area 2107 | -10/Mines | Assisted by a Guerilla fighting off Assembled 2140 | -10/Mines | Discovered new exit (range 8) 2145 | -10/Mines | Core integrity fell below 50% 2150 | -10/Mines | Entered Materials 2150 | -9/Materials | Evolved 2 slots: Propulsion x1, Utility x1 2178 | -9/Materials | Lost 7 parts (1p3n1u2w) 2284 | -9/Materials | Repaired Lgt. Nuclear Core 2445 | -9/Materials | Discovered new exit (range 8) 2574 | -9/Materials | Build established: Scavenger-Mutant 2903 | -9/Materials | Discovered new exit (range 13) 3848 | -9/Materials | Lost 3 parts (1p1n1u) 4027 | -9/Materials | Entered Mines 4256 | -9/Mines | Discovered new exit (range 16) 4260 | -9/Mines | Learned 2 Materials zone layouts 4427 | -9/Mines | A weapon hastily lodged in a ceiling crevice suddenly fell to the ground 4520 | -9/Mines | Entered Materials 4520 | -8/Materials | Evolved 2 slots: Utility x2 4797 | -8/Materials | Lost 4 parts (3n1u) 5399 | -8/Materials | Identified exit to Garrison 5399 | -8/Materials | Entered Garrison 5424 | -8/Garrison | Triggered checkpoint 5462 | -8/Garrison | Triggered checkpoint 5844 | -8/Garrison | Triggered checkpoint 6009 | -8/Garrison | Lost 3 parts (1p1n1u) 6035 | -8/Garrison | Triggered checkpoint 6083 | -8/Garrison | Lost 3 parts (2u1w) 6101 | -8/Garrison | Garrison Relay disabled 6229 | -8/Garrison | Triggered checkpoint 6256 | -8/Garrison | Garrison Relay disabled 6293 | -8/Garrison | Discovered new exit (range 10) 6448 | -8/Garrison | Triggered checkpoint 6486 | -8/Garrison | Core integrity fell below 50% 6549 | -8/Garrison | Triggered checkpoint 6689 | -8/Garrison | Discovered new exit (range 8) 6853 | -8/Garrison | Triggered checkpoint 6952 | -8/Garrison | Discovered new exit (range 8) 7023 | -8/Garrison | Triggered checkpoint 7159 | -8/Garrison | Garrison Relay disabled 7208 | -8/Garrison | Lost 6 parts (1p2n1u2w) 7241 | -8/Garrison | Triggered checkpoint 7369 | -8/Garrison | Installed Relay Interface Framework 7515 | -8/Garrison | Entered Materials 7660 | -8/Materials | Build established: Bothacker-Mutant 7731 | -8/Materials | Discovered new exit (range 10) 7749 | -8/Materials | Entered Storage 7749 | -8/Storage | Accompanied by 1 ally 7750 | -8/Storage | Identified exit to Recycling 7948 | -8/Storage | Allied Derelicts emerged from ambush trap array 7985 | -8/Storage | Garrison activated, responded to threat 8254 | -8/Storage | Discovered new exit (range 14) 8309 | -8/Storage | Repaired Huge Storage Unit 8471 | -8/Storage | Entered Factory 8471 | -7/Factory | Accompanied by 2 allies 8471 | -7/Factory | Evolved 2 slots: Utility x2 8971 | -7/Factory | Discovered new exit (range 5) 9479 | -7/Factory | Identified exit to Garrison 9537 | -7/Factory | Entered Garrison 9575 | -7/Garrison | Triggered checkpoint 9640 | -7/Garrison | Garrison Relay disabled 9651 | -7/Garrison | Heavy support dispatched to Factory 9668 | -7/Garrison | Heavy support dispatched to Factory 9728 | -7/Garrison | Triggered checkpoint 9874 | -7/Garrison | Triggered checkpoint 10072 | -7/Garrison | Discovered new exit (range 7) 10111 | -7/Garrison | Triggered checkpoint 10142 | -7/Garrison | Garrison Relay disabled 10181 | -7/Garrison | Garrison Relay disabled 10274 | -7/Garrison | Heavy support dispatched to Factory 10275 | -7/Garrison | Heavy support dispatched to Factory 10380 | -7/Garrison | Expanded RIF knowledge: Command Fork 10495 | -7/Garrison | Triggered checkpoint 10580 | -7/Garrison | Discovered new exit (range 10) 10647 | -7/Garrison | Triggered checkpoint 10690 | -7/Garrison | Garrison Relay disabled 10783 | -7/Garrison | H-XX Assembler disabled 10785 | -7/Garrison | P-60 Hacker assimilated allied Guardian 4a 11099 | -7/Garrison | Triggered checkpoint 11218 | -7/Garrison | Found embedded Infiltrators 11243 | -7/Garrison | Garrison Relay disabled 11346 | -7/Garrison | Discovered new exit (range 13) 11443 | -7/Garrison | Entered Factory 11443 | -7/Factory | Accompanied by 2 allies 11539 | -7/Factory | Discovered new exit (range 4) 11734 | -7/Factory | P-60 Hacker assimilated allied G-47 Trooper 11843 | -7/Factory | First assault squad dispatched 12035 | -7/Factory | Garrison activated, responded to threat 12114 | -7/Factory | Identified exit to Garrison 12114 | -7/Factory | Entered Garrison 12114 | -7/Garrison | Accompanied by 2 allies 12252 | -7/Garrison | Triggered checkpoint 12289 | -7/Garrison | Garrison Relay disabled 12366 | -7/Garrison | Triggered checkpoint 12392 | -7/Garrison | Triggered checkpoint 12414 | -7/Garrison | Triggered checkpoint 12437 | -7/Garrison | Triggered checkpoint 12468 | -7/Garrison | Triggered checkpoint 12496 | -7/Garrison | Garrison Relay disabled 12768 | -7/Garrison | Triggered checkpoint 12934 | -7/Garrison | Discovered new exit (range 11) 13242 | -7/Garrison | Triggered checkpoint 13297 | -7/Garrison | Garrison Relay disabled 13331 | -7/Garrison | P-60 Hacker assimilated allied Trooper 4d 13345 | -7/Garrison | P-60 Hacker assimilated allied Y-54 Guardian 13386 | -7/Garrison | Discovered new exit (range 10) 13399 | -7/Garrison | Lost 3 parts (2n1w) 13500 | -7/Garrison | Garrison Relay disabled 13597 | -7/Garrison | Garrison Relay disabled 13689 | -7/Garrison | Entered Factory 13689 | -6/Factory | Evolved 2 slots: Propulsion x1, Weapon x1 14094 | -6/Factory | Build established: Bothacker-Tank 14389 | -6/Factory | First assault squad dispatched 14473 | -6/Factory | Lost 5 allies 14475 | -6/Factory | Allied Derelicts emerged from ambush trap array 14550 | -6/Factory | Garrison activated, responded to threat 14601 | -6/Factory | Identified exit to Garrison 14687 | -6/Factory | Entered Garrison 14687 | -6/Garrison | Accompanied by 3 allies 14713 | -6/Garrison | Triggered checkpoint 14745 | -6/Garrison | Build established: Bothacker-Gunner 14746 | -6/Garrison | Garrison Relay disabled 14764 | -6/Garrison | Heavy support dispatched to Factory 14790 | -6/Garrison | Heavy support dispatched to Factory 14893 | -6/Garrison | Triggered checkpoint 14909 | -6/Garrison | Triggered checkpoint 14934 | -6/Garrison | P-60 Hacker assimilated allied Soldier 5e 14958 | -6/Garrison | Lost 4 allies 15025 | -6/Garrison | Discovered new exit (range 10) 15127 | -6/Garrison | Expanded RIF knowledge: Coupler Efficiency 15179 | -6/Garrison | Triggered checkpoint 15229 | -6/Garrison | Build established: Bothacker-Tank 15348 | -6/Garrison | Heavy support dispatched to Factory 15461 | -6/Garrison | Garrison Relay disabled 15623 | -6/Garrison | Triggered checkpoint 15659 | -6/Garrison | Discovered new exit (range 5) 15817 | -6/Garrison | Triggered checkpoint 15832 | -6/Garrison | Triggered checkpoint 15840 | -6/Garrison | Heavy support dispatched to Factory 15921 | -6/Garrison | Triggered checkpoint 15965 | -6/Garrison | Garrison Relay disabled 16173 | -6/Garrison | Discovered new exit (range 10) 16311 | -6/Garrison | Heavy support dispatched to Factory 16386 | -6/Garrison | Discovered new exit (range 10) 16449 | -6/Garrison | Triggered checkpoint 16485 | -6/Garrison | Garrison Relay disabled 16577 | -6/Garrison | H-XX Assembler disabled 16741 | -6/Garrison | Build established: Bothacker-Gunner 16996 | -6/Garrison | Entered Factory 16996 | -6/Factory | Accompanied by 6 allies 17346 | -6/Factory | First assault squad dispatched 17784 | -6/Factory | Identified exit to Garrison 17786 | -6/Factory | Entered Garrison 17786 | -6/Garrison | Accompanied by 9 allies 17810 | -6/Garrison | Triggered checkpoint 17872 | -6/Garrison | Triggered checkpoint 17892 | -6/Garrison | Garrison Relay disabled 17944 | -6/Garrison | Rescued a captive Derelict 17977 | -6/Garrison | Rescued a captive Derelict 18140 | -6/Garrison | Triggered checkpoint 18160 | -6/Garrison | Triggered checkpoint 18160 | -6/Garrison | Triggered checkpoint 18198 | -6/Garrison | Triggered checkpoint 18212 | -6/Garrison | Lost 6 allies 18257 | -6/Garrison | Expanded RIF knowledge: Patrol Navigation 18446 | -6/Garrison | Triggered checkpoint 18485 | -6/Garrison | Lost 3 allies 18488 | -6/Garrison | Garrison Relay disabled 18856 | -6/Garrison | Discovered new exit (range 10) 18860 | -6/Garrison | Triggered checkpoint 18914 | -6/Garrison | Triggered checkpoint 18921 | -6/Garrison | Garrison Relay disabled 18966 | -6/Garrison | Build established: Botlord-Gunner 19118 | -6/Garrison | Triggered checkpoint 19199 | -6/Garrison | Garrison Relay disabled 19434 | -6/Garrison | Triggered checkpoint 19466 | -6/Garrison | Garrison Relay disabled 19484 | -6/Garrison | Lost 6 allies 19608 | -6/Garrison | Discovered new exit (range 8) 19839 | -6/Garrison | Build established: Botlord-Tank 19860 | -6/Garrison | Entered Factory 19860 | -5/Factory | Accompanied by 5 allies 19860 | -5/Factory | Evolved 2 slots: Propulsion x1, Utility x1 20093 | -5/Factory | Repaired Arm. Heavy Treads 20171 | -5/Factory | Build established: Botlord-Gunner 20515 | -5/Factory | Lost 3 allies 20816 | -5/Factory | Lost 7 allies 21027 | -5/Factory | Identified exit to Garrison 21065 | -5/Factory | Entered Garrison 21065 | -5/Garrison | Accompanied by 1 ally 21132 | -5/Garrison | Triggered checkpoint 21162 | -5/Garrison | Build established: Botlord-Tank 21172 | -5/Garrison | Garrison Relay disabled 21238 | -5/Garrison | Spotted B-75 Beast 21245 | -5/Garrison | Assimilated Beast 6a with formatsys_high 21363 | -5/Garrison | System corruption reached 10% 21399 | -5/Garrison | Lost 3 parts (1n2w) 21495 | -5/Garrison | Discovered new exit (range 10) 21517 | -5/Garrison | Triggered checkpoint 21561 | -5/Garrison | Garrison Relay disabled 21756 | -5/Garrison | Rewired Executioner 21760 | -5/Garrison | Rewired Executioner 21798 | -5/Garrison | Triggered checkpoint 21907 | -5/Garrison | Triggered checkpoint 21919 | -5/Garrison | Triggered checkpoint 21989 | -5/Garrison | Discovered new exit (range 12) 22003 | -5/Garrison | Triggered checkpoint 22032 | -5/Garrison | Expanded RIF knowledge: Threat Obfuscation 22091 | -5/Garrison | Garrison Relay disabled 22184 | -5/Garrison | Discovered new exit (range 30) 22184 | -5/Garrison | Discovered new exit (range 44) 22184 | -5/Garrison | Discovered new exit (range 65) 22465 | -5/Garrison | Triggered checkpoint 22490 | -5/Garrison | Garrison Relay disabled 22572 | -5/Garrison | Entered Factory 22572 | -5/Factory | Accompanied by 8 allies 22872 | -5/Factory | First assault squad dispatched 22996 | -5/Factory | Discovered new exit (range 16) 23341 | -5/Factory | Cargo convoy interrupted 23369 | -5/Factory | Garrison activated, responded to threat 23370 | -5/Factory | Discovered new exit (range 11) 23412 | -5/Factory | Lost 6 allies 23489 | -5/Factory | Identified exit to Garrison 23501 | -5/Factory | Entered Garrison 23501 | -5/Garrison | Accompanied by 7 allies 23569 | -5/Garrison | Triggered checkpoint 23612 | -5/Garrison | Garrison Relay disabled 23629 | -5/Garrison | Triggered checkpoint 23657 | -5/Garrison | Discovered new exit (range 43) 23657 | -5/Garrison | Discovered new exit (range 65) 23657 | -5/Garrison | Discovered new exit (range 60) 23678 | -5/Garrison | Spotted B-75 Beast 23683 | -5/Garrison | Assimilated Beast 6b with formatsys_high 23719 | -5/Garrison | Triggered checkpoint 23730 | -5/Garrison | Triggered checkpoint 23771 | -5/Garrison | Lost 9 allies 23869 | -5/Garrison | Triggered checkpoint 23897 | -5/Garrison | Garrison Relay disabled 24015 | -5/Garrison | Expanded RIF knowledge: Hotswap 24251 | -5/Garrison | Garrison Relay disabled 24298 | -5/Garrison | Lost 4 allies 24429 | -5/Garrison | Found embedded Infiltrators 24449 | -5/Garrison | Triggered checkpoint 24468 | -5/Garrison | Garrison Relay disabled 24490 | -5/Garrison | Spotted Executioner 24499 | -5/Garrison | Rewired Executioner 24505 | -5/Garrison | Rewired Executioner 24511 | -5/Garrison | Allies destroyed Executioner 24655 | -5/Garrison | Triggered checkpoint 24724 | -5/Garrison | Garrison Relay disabled 24872 | -5/Garrison | Entered Factory 24872 | -4/Factory | Accompanied by 12 allies 24872 | -4/Factory | Evolved 2 slots: Utility x2 25118 | -4/Factory | Discovered new exit (range 16) 25122 | -4/Factory | First assault squad dispatched 25277 | -4/Factory | Discovered new exit (range 14) 25280 | -4/Factory | Spotted B-86 Titan 25294 | -4/Factory | Discovered new exit (range 96) 25319 | -4/Factory | Allies destroyed B-86 Titan 25346 | -4/Factory | Lost 3 allies 25545 | -4/Factory | Entered Extension 25545 | -4/Extension | Accompanied by 7 allies 25649 | -4/Extension | Rescued a captive Derelict 25650 | -4/Extension | Rescued a captive Derelict 25791 | -4/Extension | Rescued a captive Derelict 25800 | -4/Extension | Rescued a captive Derelict 25823 | -4/Extension | Rescued a captive Derelict 25965 | -4/Extension | Energy Cycler disabled 25965 | -4/Extension | Rescued a captive Derelict 25966 | -4/Extension | Rescued a captive Derelict 25966 | -4/Extension | Rescued a captive Derelict 25966 | -4/Extension | Rescued a captive Derelict 25978 | -4/Extension | Rescued A7 25978 | -4/Extension | Rescued a captive Derelict 26079 | -4/Extension | Allies destroyed Executioner 26080 | -4/Extension | Allies destroyed Executioner 26125 | -4/Extension | Lost 6 allies 26187 | -4/Extension | Spotted B-86 Titan 26201 | -4/Extension | Spotted B-86 Titan 26210 | -4/Extension | Allies destroyed B-86 Titan 26236 | -4/Extension | Discovered new exit (range 15) 26239 | -4/Extension | Assimilated ARC 7a with formatsys_deep 26250 | -4/Extension | Allies destroyed B-86 Titan 26250 | -4/Extension | Lost 11 allies 26545 | -4/Extension | First assault squad dispatched 26613 | -4/Extension | Discovered new exit (range 16) 26615 | -4/Extension | Discovered new exit (range 15) 27130 | -4/Extension | P-70 Sage assimilated allied YA-F7R(b) 27132 | -4/Extension | P-70 Sage assimilated allied Artificer 7b 27186 | -4/Extension | Lost 19 allies 27194 | -4/Extension | Lost 3 parts (1n1u1w) 27200 | -4/Extension | Entered Research 27200 | -3/Research | Evolved 2 slots: Propulsion x1, Utility x1 27397 | -3/Research | Identified exit to DSF 27399 | -3/Research | Entered DSF 27553 | -3/DSF | Additional patrols routed to DSF 27659 | -3/DSF | Discovered new exit (range 14) 27810 | -3/DSF | Entered Research 27810 | -2/Research | Accompanied by 2 allies 27810 | -2/Research | Evolved 2 slots: Power x1, Utility x1 28383 | -2/Research | P-80 Master assimilated allied Smith 9a 28410 | -2/Research | P-80 Master assimilated allied Warden 9a 28457 | -2/Research | System corruption reached 10% 28481 | -2/Research | Destroyed 7 combat bots 28566 | -2/Research | Discovered new exit (range 14) 28940 | -2/Research | Discovered new exit (range 15) 28978 | -2/Research | Entered Quarantine 28978 | -2/Quarantine | Accompanied by 1 ally 29107 | -2/Quarantine | Scanned by Researcher 29155 | -2/Quarantine | Found Subatomic Replicator 29213 | -2/Quarantine | Found Alien Artifact 29322 | -2/Quarantine | Found Alien Slashing Weapon 29418 | -2/Quarantine | Lost 3 parts (1p2u) 29486 | -2/Quarantine | Met incapacitated Sigix Warrior 29486 | -2/Quarantine | Lockdown squad dispatched 29491 | -2/Quarantine | Acquired the access code to the Sigix quarantine chamber 29494 | -2/Quarantine | Unlocked Sigix quarantine chamber 29500 | -2/Quarantine | Found Sigix Containment Pod 29573 | -2/Quarantine | Identified Sigix Broadsword 29595 | -2/Quarantine | Identified Phase Redirector 29608 | -2/Quarantine | Spotted Lightning 29612 | -2/Quarantine | Spotted Lightning 29616 | -2/Quarantine | Spotted Lightning 29690 | -2/Quarantine | System corruption reached 30% 29720 | -2/Quarantine | Destroyed Lightning 29771 | -2/Quarantine | Destroyed Lightning 29821 | -2/Quarantine | Lost 5 parts (4u1w) 29832 | -2/Quarantine | Destroyed Lightning 29863 | -2/Quarantine | Found Corrupted Gamma Bomb Array 29867 | -2/Quarantine | Found Hvy. Reactive Plating 29873 | -2/Quarantine | Found Corrupted Gamma Bomb Array 29878 | -2/Quarantine | Lost 3 parts (2p1n) 29882 | -2/Quarantine | Found Hvy. Reactive Plating 30307 | -2/Quarantine | Spotted Alpha 7 30321 | -2/Quarantine | Lost 9 parts (1p2n4u2w) 30353 | -2/Quarantine | Found Core Stripper 30438 | -2/Quarantine | Found Alien Artifact 30438 | -2/Quarantine | Identified Core Reset Matrix 30438 | -2/Quarantine | Used Core Reset Matrix 30442 | -2/Quarantine | Sensed 5 artifacts in vicinity 30504 | -2/Quarantine | Found Terrabomb 30518 | -2/Quarantine | Found Terrabomb 30982 | -2/Quarantine | Discovered new exit (range 5) 30984 | -2/Quarantine | Identified exit to Access 31047 | -2/Quarantine | Spotted Fortress 31080 | -2/Quarantine | Discovered new exit (range 6) 31083 | -2/Quarantine | Identified exit to Section 7 31084 | -2/Quarantine | Entered Section 7 31085 | -2/Section 7 | Sensed 25 artifacts in vicinity 31085 | -2/Section 7 | Lost 3 parts (1p1n1w) 31087 | -2/Section 7 | Spotted S7 Guard 31093 | -2/Section 7 | Scanned by Researcher 31100 | -2/Section 7 | Found Integrated Thermoelectric Network 31100 | -2/Section 7 | Installed Integrated Thermoelectric Network, gained heat-energy exchange potential 31129 | -2/Section 7 | Found Integrated Reactor 31129 | -2/Section 7 | Installed Integrated Reactor, increased core energy generation (+10) 31160 | -2/Section 7 | Core integrity fell below 50% 31170 | -2/Section 7 | Used Terrabomb 31170 | -2/Section 7 | Spotted B-90 Cyclops 31170 | -2/Section 7 | Spotted S7 Guard 31173 | -2/Section 7 | Discovered exit to Access (range 15) 31177 | -2/Section 7 | Core integrity fell below 20% 31199 | -2/Section 7 | Spotted Alpha 7 31200 | -2/Section 7 | Spotted Alpha 7 31208 | -2/Section 7 | Destroyed by Alpha 7 with Multirail Last Messages --------------- 31161_ Identified Impulse Thruster Array. 31168_ TWRLO=SGJRTPBFHC#UO/UT 31170_ Terrabomb activated. 31172_ Suspension Chamber breached. 31173_ W-44 Eye sends out distress signal. 31173_ EXIT=FOUND: ACCESS 31174_ S7 Guard springs to life. 31175_ U-05 Engineer builds a Wall. 31176_ Slug penetrates Door. 31177_ U-05 Engineer builds a Wall. 31184_ System corrupted: Impulse Thruster Array rejected. 31185_ U-05 Engineer builds a Wall. 31189_ Adv. Signal Interpreter destroyed. 31204_ IJ# 1AHCYWV&OYKI =5L S8OZRL:EPIW39 31207_ Penetrated by Slug. [Achievement: 20k Club] [Achievement: 30k Club] [Achievement: 40k Club] [Achievement: 50k Club] [Achievement: Just Browsing] Map ----- +----------------------------------------------------+ | ?????????????????????????????????????????????????? | | ?????????????????????????????????????????????????? | | ?????????????????????????????????????????????????? | | ???????????????????????????????????? ?????????? | | ????????????????????????????????#?"" ?????????? | | ?????????????????????########## # ????????? | | ?????????????????????# / ????????? | | ######???????????????# / ???????? | | ???????????????# / ???????? | | #??????????????# / ???????? | | #??????????????# 77##### # ???????? | | +??????????????# #??????????????????????? | | ?# ################ #??????????????????????? | | ?# #??????????????????????? | | ?# #??????????????????????? | | ?# """ """ #??????????????????????? | | ?# """ """ #??????????????????????? | | ?# ######### """ """ #??????????????????????? | | ?# #???????# p ###????????????????????? | | ?# #???????# """ """ ""#????????????????????? | | ?# #???????# """ """ ""#????????????????????? | | ?# #???????# """ """ G#????????????????????? | | ?# #???????# ""#????????????????????? | | ?# =#???????# """ """ ""#????????????????????? | | ## #???????# """ """ ###????????????????????? | | # #???????# """ """ @#??????????????????????? | | # #???????# #??????????????????????? | | # #???????# #??????????????????????? | | # #???????+ #??????????????????????? | | "# #???????# #??????????????????????? | | # #???????# #??????????????????????? | | # #???????####+###### #????????????????!!!???? | | / #?????????????????# #??????????????????????? | | " #?????????????????# #??????????????????????? | | " #?????????????????? ???????????????????????? | | " #?????????????????? ???????????????????????? | | " #?????????????????? ???????????????????????? | | "" #??????????????????+???????????????????????? | | " #??????????????????????????????????????????? | | " "#?????????????????????????????????????????? | | " ##?????????????????????????????????????????? | | " #??????????????????????????????????????????? | | "" #??????????????????????????????????????????? | | " #??????????????????????????????????????????? | | " #??????????????????????????????????????????? | | " #??????????????????????????????????????????? | | " ?????????????????????????????????????????? | | " < #"#????????????????????????????????????????? | | " ###????????????????????????????????????????? | | " #??????????????????????????????????????????? | +----------------------------------------------------+ Best States ------------- Heat Dissipation 87 Energy Generation 45 Energy Capacity 600 Matter Stores 300 Matter Capacity 300 Sight Range 16 Robot Scan Range 15 Terrain Scan Density 10 Armor Coverage 1650 Resistance: KI 40 Core Shielding 30 Point Defense Rating 240 Phase Shifting 15 Evasion (%) 61 Targeting Accuracy 6 Target Analysis 8 Recoil Reduction 6 Matter Filtering 30 Energy Filtering 45 Defensive Hacking 10 Relay Coupler Types 7 Relay Coupler Value 155 Item Schematics ----------------- None Robot Schematics ------------------ None Fabricated ------------ Nothing Alien Tech Used ----------------- Sigix Broadsword Phase Redirector Core Reset Matrix Core Stripper Integrated Thermoelectric Network Integrated Reactor Terrabomb Achievements -------------- 20k Club 30k Club 40k Club 50k Club Alien Roots Beloved Can't Touch This Factory Defaults False Reunion Generalissimo Infiltrator Just Browsing Nope Prison Break Pwned Rockin' Loadout Signature Confirmed Sunderer Tank Turtlemind Use The Force We Are Legion Z1$+NX3F=JRE3_ZNQR Challenges ------------ None Game ------ Seed ScanBoreProjector Manual? 0 Play Time 06:22:56 Cumulative 25.0 hours Start 2025.04.26 @ 15:07:44 End 2025.05.02 @ 13:00:17 Sessions 15 Manual Loads 0 Difficulty Rogue Special Mode None Game No. 23 Rogue 23 Adventurer 0 Explorer 0 Win Type - Total 1 Types 1/0/0/0/0/0/0/0/0 Lore% 22 Gallery% 29 Achievement% 36 Wizard Run 0 Options --------- Layout 0 ASCII 0 Keyboard 1 Movement Vi Keybinds 0 Fullscreen 2 Font 18/SmallcapsGlow Map View 76x50 Zoom Use 0% Tactical HUD 1 Map Filters NONE Filters NONE Steam 1 RUN: 97f58d97-0e50-408d-80f2-156ac531c98d